fUST/lending_fUST_20240921
["ID","MTS","AMOUNT","RATE_DAILY","PERIOD"]
[338758536,1726909840487,-500.0,0.00014551,2]
[338758538,1726909840497,-500.0,0.00014551,2]
[338758540,1726909840506,-500.0,0.00014551,2]
[338758542,1726909840516,-670.58,0.00014551,2]
[338758544,1726909840527,-500.0,0.00014551,2]
[338758546,1726909840538,-500.0,0.00014551,2]
[338758548,1726909840547,-352.08267994,0.00014551,2]
[338758550,1726909840557,-500.0,0.00014551,2]
[338758552,1726909840566,-500.0,0.00014551,2]
[338758554,1726909840576,-500.0,0.00014551,2]
[338758556,1726909840586,-500.0,0.00014551,2]
[338758558,1726909840595,-500.0,0.00014551,2]
[338758560,1726909840604,-500.0,0.00014551,2]
[338758562,1726909840614,-500.0,0.00014551,2]
[338758564,1726909840623,-500.0,0.00014551,2]
[338758566,1726909840633,-500.0,0.00014551,2]
[338758568,1726909840642,-500.0,0.00014551,2]
[338758570,1726909840651,-229.41905713,0.00014551,2]
[338758572,1726909840661,-1413.42,0.00014551,2]
[338758574,1726909840670,-503.51,0.00014551,2]
[338758576,1726909840681,-500.0,0.00014551,2]
[338758578,1726909840690,-500.0,0.00014551,2]
[338758580,1726909840699,-500.0,0.00014551,2]
[338758582,1726909840709,-500.0,0.00014551,2]
[338758584,1726909840719,-500.0,0.00014551,2]
[338758586,1726909840728,-500.0,0.00014551,2]
[338758588,1726909840739,-630.05,0.00014551,2]
[338758590,1726909840752,-500.0,0.00014551,2]
[338758592,1726909840762,-500.0,0.00014551,2]
[338758594,1726909840774,-500.0,0.00014551,2]
[338758596,1726909840784,-500.0,0.00014551,2]
[338758598,1726909840793,-613.62,0.00014551,2]
[338758600,1726909840803,-757.98,0.00014551,2]
[338758603,1726909840815,-12810.55,0.00014551,2]
[338758628,1726909841059,-500.0,0.00014551,2]
[338758630,1726909841070,-200.0,0.00014551,2]
[338758632,1726909841079,-447.81982127,0.00014551,2]
[338758634,1726909841089,-1683.15,0.00014551,2]
[338758636,1726909841099,-500.0,0.00014551,2]
[338758638,1726909841109,-500.0,0.00014551,2]
[338758640,1726909841118,-668.05,0.00014552,2]
[338758642,1726909841128,-500.0,0.00014552,2]
[338758645,1726909841138,-500.0,0.00014552,2]
[338758646,1726909841147,-500.0,0.00014552,2]
[338758648,1726909841157,-500.0,0.00014552,2]
[338758650,1726909841166,-500.0,0.00014552,2]
[338758652,1726909841177,-503.92,0.00014552,2]
[338758655,1726909841188,-500.0,0.00014552,2]
[338758657,1726909841198,-500.0,0.00014552,2]
[338758659,1726909841207,-500.0,0.00014552,2]
[338758661,1726909841222,-500.0,0.00014552,2]
[338758663,1726909841232,-500.0,0.00014552,2]
[338758665,1726909841242,-500.0,0.00014552,2]
[338758667,1726909841252,-366.53796657,0.00014552,2]
[338758669,1726909841262,-500.0,0.00014552,2]
[338758671,1726909841272,-1187.11,0.00014552,2]
[338758673,1726909841282,-500.0,0.00014552,2]
[338758675,1726909841292,-500.0,0.00014553,2]
[338758677,1726909841302,-150.0,0.0001469,2]
[338758679,1726909841313,-1060.16,0.000147,2]
[338758681,1726909841324,-152.52020499,0.00014725,2]
[338758683,1726909841334,-6707.94644165,0.00014743,2]
[338758685,1726909841343,-153.0,0.000148,2]
[338758687,1726909841354,-830.4829052,0.000148,2]
[338758689,1726909841364,-153.0,0.000148,2]
[338758691,1726909841373,-46903.2534723,0.00014805,2]
[338758693,1726909841382,-7606.23175721,0.00014805,2]
[338758695,1726909841392,-46903.2534723,0.00014815,2]
[338758697,1726909841401,-7606.23175721,0.00014815,2]
[338758698,1726909841411,-508.67,0.00014825,2]
[338758701,1726909841423,-500.0,0.00014825,2]
[338758703,1726909841433,-500.0,0.00014825,2]
[338758705,1726909841443,-500.0,0.00014825,2]
[338758707,1726909841454,-500.0,0.00014825,2]
[338758709,1726909841464,-500.0,0.00014825,2]
[338758711,1726909841474,-500.0,0.00014825,2]
[338758713,1726909841483,-500.0,0.00014825,2]
[338758715,1726909841492,-729.44,0.00014825,2]
[338758717,1726909841502,-500.0,0.00014825,2]
[338758719,1726909841511,-500.0,0.00014825,2]
[338758721,1726909841521,-500.0,0.00014825,2]
[338758723,1726909841531,-670.58,0.00014825,2]
[338758725,1726909841541,-500.0,0.00014825,2]
[338758727,1726909841552,-500.0,0.00014825,2]
[338758729,1726909841561,-500.0,0.00014825,2]
[338758732,1726909841571,-500.0,0.00014825,2]
[338758734,1726909841580,-500.0,0.00014825,2]
[338758736,1726909841591,-500.0,0.00014825,2]
[338758738,1726909841602,-500.0,0.00014825,2]
[338758740,1726909841614,-500.0,0.00014825,2]
[338758742,1726909841624,-243.82932353,0.00014825,2]
[338758745,1726909841638,-256.17067647,0.00014825,2]
[338758747,1726909841648,-500.0,0.00014825,2]
[338758749,1726909841658,-500.0,0.00014825,2]
[338758751,1726909841667,-540.72396895,0.00014825,2]
[338758753,1726909841676,-390.53055967,0.00014825,2]
[338759173,1726909846074,-1022.88944033,0.00014825,2]
[338759175,1726909846084,-503.51,0.00014825,2]
[338759177,1726909846094,-500.0,0.00014825,2]
[338759179,1726909846103,-500.0,0.00014825,2]
[338759181,1726909846113,-500.0,0.00014825,2]
[338759183,1726909846123,-500.0,0.00014825,2]
[338759185,1726909846134,-500.0,0.00014825,2]
[338759187,1726909846146,-630.05,0.00014825,2]
[338759189,1726909846156,-500.0,0.00014825,2]
[338759191,1726909846166,-500.0,0.00014825,2]
[338759193,1726909846175,-500.0,0.00014825,2]
[338759195,1726909846185,-613.62,0.00014825,2]
[338759197,1726909846194,-757.98,0.00014825,2]
[338759199,1726909846203,-12810.55,0.00014825,2]
[338759201,1726909846213,-200.0,0.00014825,2]
[338759202,1726909846224,-1683.15,0.00014825,2]
[338759203,1726909846235,-500.0,0.00014825,2]
[338759204,1726909846245,-500.0,0.00014825,2]
[338759205,1726909846256,-668.05,0.00014826,2]
[338759206,1726909846266,-500.0,0.00014826,2]
[338759207,1726909846277,-500.0,0.00014826,2]
[338759208,1726909846286,-500.0,0.00014826,2]
[338759209,1726909846297,-500.0,0.00014826,2]
[338759210,1726909846307,-500.0,0.00014826,2]
[338759211,1726909846318,-503.92,0.00014826,2]
[338759214,1726909846332,-500.0,0.00014826,2]
[338759216,1726909846342,-500.0,0.00014826,2]
[338759218,1726909846352,-500.0,0.00014826,2]
[338759220,1726909846362,-500.0,0.00014826,2]
[338759222,1726909846373,-500.0,0.00014826,2]
[338759224,1726909846384,-497.54207481,0.00014826,2]
[338759226,1726909846393,-500.0,0.00014826,2]
[338759228,1726909846405,-1187.11,0.00014826,2]
[338759230,1726909846415,-500.0,0.00014826,2]
[338759232,1726909846426,-144.45853252,0.00014827,2]
[338759234,1726909846439,-301.24211674,0.00014827,2]
[338764124,1726909984134,190.352967,0.00013808,2]
[338764125,1726910089926,270.080693,0.00013699,2]
[338764127,1726910181078,162.397312,0.00011781,2]
[338764130,1726910374264,3128.7465528,0.00013426,2]
[338764136,1726910650484,190.352967,0.00013528,2]
[338764141,1726910754447,349.936613,0.00013699,2]
[338764143,1726910851830,162.397312,0.00011781,2]
[338764207,1726911032428,-300.0,0.00014273,2]
[338764208,1726911032437,-300.0,0.00014273,2]
[338764209,1726911032447,-500.0,0.00014274,2]
[338764210,1726911032456,-611.91,0.00014274,2]
[338764211,1726911032465,-500.0,0.00014274,2]
[338764212,1726911032474,-557.841104,0.00014274,2]
[338764213,1726911032484,-500.0,0.00014274,2]
[338764214,1726911032494,-4615.95728186,0.00014274,2]
[338764215,1726911034510,47047.23005,0.000135,2]
[338764217,1726911038486,-5187.66271814,0.00014274,2]
[338764218,1726911038496,-1634.7,0.00014274,2]
[338764219,1726911038506,-500.0,0.00014275,2]
[338764220,1726911038517,-595.95,0.00014275,2]
[338764221,1726911038526,-200.0,0.00014276,2]
[338764222,1726911038536,-500.0,0.00014276,2]
[338764223,1726911038546,-707.16,0.00014276,2]
[338764225,1726911038556,-500.0,0.00014276,2]
[338764226,1726911038566,-500.0,0.00014276,2]
[338764227,1726911038576,-500.0,0.00014276,2]
[338764228,1726911038586,-500.0,0.00014276,2]
[338764229,1726911038595,-500.0,0.00014276,2]
[338764230,1726911038605,-500.0,0.00014276,2]
[338764231,1726911038614,-500.0,0.00014276,2]
[338764232,1726911038624,-500.0,0.00014276,2]
[338764233,1726911038635,-500.0,0.00014276,2]
[338764234,1726911038644,-506.91107789,0.00014276,2]
[338764235,1726911038653,-610.42871154,0.00014276,2]
[338764236,1726911038663,-500.0,0.00014276,2]
[338764237,1726911038673,-347.75191543,0.00014276,2]
[338764238,1726911038682,-500.0,0.00014276,2]
[338764239,1726911038691,-501.55123141,0.00014276,2]
[338764240,1726911038701,-349.936613,0.00014384,2]
[338764241,1726911038710,-736.88452327,0.00014439,2]
[338764242,1726911038721,-252.20416621,0.00014441,2]
[338764243,1726911038731,-1000.0,0.0001445,2]
[338764244,1726911038740,-2172.6076108,0.00014535,2]
[338764245,1726911038749,-3374.89808856,0.00014539,2]
[338764326,1726911040259,-697.055172,0.00014539,2]
[338764334,1726911040320,-46513.91879334,0.00014539,2]
[338764336,1726911040330,-3172.49798455,0.00014539,2]
[338764338,1726911040338,-50585.8720539,0.0001454,2]
[338764340,1726911040348,-3172.49798455,0.0001454,2]
[338764342,1726911040357,-50585.8720539,0.00014541,2]
[338764344,1726911040366,-3172.49798455,0.00014541,2]
[338764346,1726911040376,-500.0,0.00014548,2]
[338764348,1726911040386,-611.91,0.00014548,2]
[338764350,1726911040395,-500.0,0.00014548,2]
[338764351,1726911040404,-9803.62,0.00014548,2]
[338764354,1726911040413,-1634.7,0.00014548,2]
[338764356,1726911040423,-769.23,0.00014549,2]
[338764358,1726911040432,-500.0,0.00014549,2]
[338764360,1726911040441,-500.0,0.00014549,2]
[338764362,1726911040451,-500.0,0.00014549,2]
[338764364,1726911040461,-500.0,0.00014549,2]
[338764366,1726911040471,-500.0,0.00014549,2]
[338764368,1726911040481,-1431.63,0.00014549,2]
[338764370,1726911040493,-500.0,0.00014549,2]
[338764372,1726911040502,-500.0,0.00014549,2]
[338764374,1726911040512,-500.0,0.00014549,2]
[338764376,1726911040521,-595.95,0.00014549,2]
[338764378,1726911040530,-500.0,0.00014549,2]
[338764380,1726911040541,-527.44,0.00014549,2]
[338764382,1726911040552,-500.0,0.00014549,2]
[338764384,1726911040561,-500.0,0.00014549,2]
[338764386,1726911040570,-500.0,0.00014549,2]
[338764388,1726911040580,-500.0,0.00014549,2]
[338764390,1726911040589,-726.39,0.00014549,2]
[338764392,1726911040600,-500.0,0.00014549,2]
[338764394,1726911040609,-500.0,0.0001455,2]
[338764396,1726911040619,-500.0,0.0001455,2]
[338764398,1726911040628,-500.0,0.0001455,2]
[338764400,1726911040638,-500.0,0.0001455,2]
[338764401,1726911040647,-500.0,0.0001455,2]
[338764403,1726911040657,-500.0,0.0001455,2]
[338764405,1726911040666,-500.0,0.0001455,2]
[338764407,1726911040676,-500.0,0.0001455,2]
[338764409,1726911040686,-500.0,0.0001455,2]
[338764411,1726911040696,-500.0,0.0001455,2]
[338764413,1726911040707,-503.37632516,0.0001455,2]
[338764415,1726911040718,-248.73159553,0.0001455,2]
[338764417,1726911040729,-500.0,0.0001455,2]
[338764420,1726911040740,-500.0,0.0001455,2]
[338764422,1726911040750,-500.0,0.0001455,2]
[338764424,1726911040760,-500.0,0.0001455,2]
[338764426,1726911040770,-500.0,0.0001455,2]
[338764428,1726911040780,-500.0,0.0001455,2]
[338764430,1726911040789,-500.0,0.0001455,2]
[338764432,1726911040798,-500.0,0.0001455,2]
[338764434,1726911040808,-500.0,0.0001455,2]
[338764435,1726911040817,-500.0,0.0001455,2]
[338764436,1726911040827,-500.0,0.0001455,2]
[338764437,1726911040837,-500.0,0.0001455,2]
[338764438,1726911040848,-500.0,0.0001455,2]
[338764439,1726911040857,-500.0,0.0001455,2]
[338764440,1726911040867,-500.0,0.0001455,2]
[338764441,1726911040878,-500.0,0.0001455,2]
[338764442,1726911040892,-500.0,0.0001455,2]
[338764443,1726911040901,-500.0,0.0001455,2]
[338764444,1726911040910,-500.0,0.0001455,2]
[338764445,1726911040919,-500.0,0.0001455,2]
[338764446,1726911040928,-500.0,0.0001455,2]
[338764447,1726911040937,-500.0,0.0001455,2]
[338764448,1726911040947,-500.0,0.0001455,2]
[338764449,1726911040956,-500.0,0.0001455,2]
[338764450,1726911040968,-470.22010164,0.0001455,2]
[338764451,1726911040978,-500.0,0.0001455,2]
[338764452,1726911040988,-258.17575354,0.0001455,2]
[338764453,1726911040997,-500.0,0.0001455,2]
[338764454,1726911041006,-501.26830144,0.0001455,2]
[338764455,1726911041015,-504.94745652,0.0001455,2]
[338764456,1726911041024,-500.0,0.0001455,2]
[338764457,1726911041033,-500.0,0.0001455,2]
[338764458,1726911041042,-632.90906114,0.0001455,2]
[338764459,1726911041052,-500.0,0.0001455,2]
[338764460,1726911041061,-500.0,0.0001455,2]
[338764461,1726911041070,-500.0,0.0001455,2]
[338764462,1726911041079,-500.0,0.0001455,2]
[338764463,1726911041090,-203.68978767,0.0001455,2]
[338764465,1726911041100,-500.0,0.0001455,2]
[338764466,1726911041110,-500.0,0.0001455,2]
[338764467,1726911041119,-500.0,0.0001455,2]
[338764468,1726911041129,-500.0,0.0001455,2]
[338764470,1726911041140,-546.72,0.0001455,2]
[338764472,1726911041150,-500.0,0.0001455,2]
[338764474,1726911041160,-500.0,0.0001455,2]
[338764477,1726911041170,-616.38417275,0.0001455,2]
[338764479,1726911041179,-214.39538452,0.0001455,2]
[338764481,1726911041188,-500.0,0.0001455,2]
[338764483,1726911041198,-500.0,0.0001455,2]
[338764484,1726911041207,-500.0,0.0001455,2]
[338764486,1726911041218,-707.16,0.0001455,2]
[338764488,1726911041228,-500.0,0.0001455,2]
[338764490,1726911041237,-500.0,0.0001455,2]
[338764492,1726911041246,-500.0,0.0001455,2]
[338764494,1726911041255,-502.17291146,0.0001455,2]
[338764496,1726911041264,-500.0,0.0001455,2]
[338764498,1726911041274,-506.57534725,0.0001455,2]
[338764500,1726911041283,-500.0,0.0001455,2]
[338764502,1726911041292,-500.0,0.0001455,2]
[338764504,1726911041302,-500.0,0.0001455,2]
[338764506,1726911041311,-500.0,0.0001455,2]
[338764508,1726911041321,-500.0,0.0001455,2]
[338764510,1726911041330,-500.0,0.0001455,2]
[338764512,1726911041340,-500.0,0.0001455,2]
[338764514,1726911041349,-500.0,0.0001455,2]
[338764516,1726911041358,-500.0,0.0001455,2]
[338764518,1726911041369,-500.0,0.0001455,2]
[338764520,1726911041377,-500.0,0.0001455,2]
[338764522,1726911041387,-500.0,0.0001455,2]
[338764524,1726911041396,-252.59641309,0.0001455,2]
[338764526,1726911041405,-500.0,0.0001455,2]
[338764528,1726911041414,-502.60706432,0.0001455,2]
[338764530,1726911041423,-511.44484,0.0001455,2]
[338764532,1726911041433,-500.0,0.0001455,2]
[338764534,1726911041442,-500.0,0.0001455,2]
[338764536,1726911041451,-325.24175017,0.0001455,2]
[338764538,1726911041462,-500.0,0.0001455,2]
[338764540,1726911041471,-500.0,0.0001455,2]
[338764542,1726911041480,-280.82396635,0.0001455,2]
[338764544,1726911041490,-500.0,0.0001455,2]
[338764546,1726911041499,-508.85454329,0.0001455,2]
[338764548,1726911041509,-500.0,0.0001455,2]
[338764550,1726911041518,-500.0,0.0001455,2]
[338764552,1726911041527,-500.0,0.0001455,2]
[338764554,1726911041536,-503.32291809,0.0001455,2]
[338764556,1726911041546,-500.0,0.0001455,2]
[338764558,1726911041556,-501.86830141,0.0001455,2]
[338764560,1726911041566,-500.0,0.0001455,2]
[338764562,1726911041574,-500.0,0.0001455,2]
[338764564,1726911041583,-500.0,0.0001455,2]
[338764566,1726911041593,-502.62406265,0.0001455,2]
[338764586,1726911041767,-500.0,0.0001455,2]
[338764588,1726911041779,-500.0,0.0001455,2]
[338764590,1726911041789,-500.0,0.0001455,2]
[338764592,1726911041798,-500.0,0.0001455,2]
[338764594,1726911041807,-500.97037294,0.0001455,2]
[338764596,1726911041816,-500.0,0.0001455,2]
[338764598,1726911041825,-500.0,0.0001455,2]
[338764600,1726911041834,-617.26414818,0.0001455,2]
[338764602,1726911041845,-500.0,0.0001455,2]
[338764604,1726911041854,-500.0,0.0001455,2]
[338764606,1726911041863,-500.0,0.0001455,2]
[338764608,1726911041872,-500.0,0.0001455,2]
[338764610,1726911041885,-500.0,0.0001455,2]
[338764613,1726911041896,-500.0,0.0001455,2]
[338764615,1726911041908,-500.0,0.0001455,2]
[338764617,1726911041919,-229.41905713,0.0001455,2]
[338764619,1726911041929,-500.0,0.0001455,2]
[338764621,1726911041939,-500.0,0.0001455,2]
[338764623,1726911041948,-500.0,0.0001455,2]
[338764625,1726911041957,-691.57,0.0001455,2]
[338764627,1726911041968,-500.0,0.0001455,2]
[338764629,1726911041977,-500.0,0.0001455,2]
[338764631,1726911041986,-500.0,0.0001455,2]
[338764633,1726911041996,-500.0,0.0001455,2]
[338764635,1726911042006,-539.98,0.0001455,2]
[338764637,1726911042015,-500.0,0.0001455,2]
[338764639,1726911042024,-500.0,0.0001455,2]
[338764641,1726911042035,-500.0,0.0001455,2]
[338764643,1726911042044,-388.24547586,0.0001455,2]
[338764645,1726911042053,-500.0,0.0001455,2]
[338764647,1726911042062,-500.0,0.0001455,2]
[338764649,1726911042072,-500.0,0.0001455,2]
[338764651,1726911042081,-503.73592296,0.0001455,2]
[338764653,1726911042090,-500.0,0.0001455,2]
[338764655,1726911042100,-500.0,0.0001455,2]
[338764657,1726911042109,-500.0,0.0001455,2]
[338764659,1726911042119,-500.0,0.0001455,2]
[338764661,1726911042129,-500.0,0.0001455,2]
[338764663,1726911042138,-500.0,0.0001455,2]
[338764665,1726911042148,-500.0,0.0001455,2]
[338764667,1726911042158,-197.15480101,0.0001455,2]
[338764669,1726911042167,-500.0,0.0001455,2]
[338764671,1726911042177,-500.0,0.0001455,2]
[338764673,1726911042186,-500.0,0.0001455,2]
[338764675,1726911042195,-500.0,0.0001455,2]
[338764678,1726911042205,-500.0,0.0001455,2]
[338764679,1726911042214,-500.0,0.0001455,2]
[338764682,1726911042224,-500.0,0.0001455,2]
[338764684,1726911042233,-500.0,0.0001455,2]
[338764686,1726911042243,-500.0,0.0001455,2]
[338764688,1726911042252,-474.3205781,0.0001455,2]
[338764690,1726911042262,-500.0,0.0001455,2]
[338764691,1726911042271,-500.0,0.0001455,2]
[338764693,1726911042280,-500.0,0.0001455,2]
[338764696,1726911042290,-500.0,0.0001455,2]
[338764698,1726911042300,-500.0,0.0001455,2]
[338764700,1726911042309,-500.0,0.0001455,2]
[338764702,1726911042319,-500.0,0.0001455,2]
[338764703,1726911042328,-500.0,0.0001455,2]
[338764705,1726911042337,-500.0,0.0001455,2]
[338764707,1726911042347,-500.0,0.0001455,2]
[338764710,1726911042357,-500.0,0.0001455,2]
[338764711,1726911042366,-500.0,0.0001455,2]
[338764714,1726911042376,-500.0,0.0001455,2]
[338764715,1726911042385,-501.01725033,0.0001455,2]
[338764717,1726911042394,-501.99008311,0.0001455,2]
[338764719,1726911042404,-500.0,0.0001455,2]
[338764722,1726911042414,-500.0,0.0001455,2]
[338764724,1726911042425,-500.0,0.0001455,2]
[338764726,1726911042435,-500.0,0.0001455,2]
[338764728,1726911042445,-500.0,0.0001455,2]
[338764730,1726911042456,-572.82459338,0.0001455,2]
[338764732,1726911042465,-500.0,0.0001455,2]
[338764734,1726911042475,-514.69753061,0.0001455,2]
[338764736,1726911042486,-500.0,0.0001455,2]
[338764738,1726911042497,-500.0,0.0001455,2]
[338764740,1726911042508,-500.0,0.0001455,2]
[338764742,1726911042520,-500.0,0.0001455,2]
[338764745,1726911042532,-1199.33,0.0001455,2]
[338764747,1726911042543,-500.0,0.0001455,2]
[338764749,1726911042552,-500.0,0.0001455,2]
[338764751,1726911042561,-599.23616822,0.0001455,2]
[338764753,1726911042571,-296.08985022,0.0001455,2]
[338764755,1726911042580,-500.0,0.0001455,2]
[338764757,1726911042589,-500.0,0.0001455,2]
[338764759,1726911042599,-500.0,0.0001455,2]
[338764761,1726911042609,-500.0,0.0001455,2]
[338764763,1726911042618,-500.0,0.0001455,2]
[338764765,1726911042627,-500.0,0.0001455,2]
[338764767,1726911042636,-270.26754927,0.0001455,2]
[338764769,1726911042646,-504.41551199,0.0001455,2]
[338764771,1726911042656,-500.0,0.0001455,2]
[338764773,1726911042666,-291.50920093,0.0001455,2]
[338764775,1726911042676,-500.0,0.0001455,2]
[338764777,1726911042686,-500.0,0.0001455,2]
[338764779,1726911042697,-500.0,0.0001455,2]
[338764781,1726911042708,-500.0,0.00014551,2]
[338764783,1726911042720,-252.2041662,0.00014571,2]
[338764785,1726911042730,-199.0,0.0001459,2]
[338764787,1726911042739,-153.0,0.000146,2]
[338764789,1726911042749,-153.0,0.000146,2]
[338764791,1726911042758,-411.7313822,0.000147,2]
[338764793,1726911042767,-158.0319638,0.000147,2]
[338764795,1726911042777,-153.0,0.000147,2]
[338764797,1726911042786,-153.0,0.000147,2]
[338764799,1726911042795,-252.2041662,0.00014701,2]
[338764801,1726911042805,-150.0,0.00014746,2]
[338764803,1726911042814,-6765.47377935,0.0001477,2]
[338764805,1726911042824,-153.0,0.000148,2]
[338764807,1726911042835,-153.0,0.000148,2]
[338764809,1726911042845,-411.651906,0.000148,2]
[338764810,1726911042855,-411.651906,0.000148,2]
[338764813,1726911042866,-153.0,0.000148,2]
[338764815,1726911042876,-411.651906,0.000148,2]
[338764816,1726911042888,-153.0,0.000148,2]
[338764818,1726911042898,-1191.05,0.000148,2]
[338764820,1726911042907,-50585.8720539,0.00014804,2]
[338764822,1726911042917,-3172.49798455,0.00014804,2]
[338764825,1726911042927,-500.0,0.00014811,2]
[338764828,1726911042937,-250.0,0.00014811,2]
[338764830,1726911042947,-500.0,0.00014811,2]
[338764833,1726911042956,-500.0,0.00014811,2]
[338764837,1726911042967,-500.0,0.00014811,2]
[338764840,1726911042977,-500.0,0.00014811,2]
[338764843,1726911042986,-500.0,0.00014811,2]
[338764848,1726911042996,-500.0,0.00014811,2]
[338764852,1726911043006,-395.98725466,0.00014811,2]
[338764857,1726911043015,-500.0,0.00014811,2]
[338764861,1726911043024,-500.0,0.00014811,2]
[338764865,1726911043034,-438.57162168,0.00014811,2]
[338764868,1726911043043,-500.0,0.00014811,2]
[338764871,1726911043052,-500.0,0.00014811,2]
[338764874,1726911043061,-500.0,0.00014811,2]
[338764877,1726911043071,-500.0,0.00014811,2]
[338764879,1726911043081,-500.0,0.00014811,2]
[338764881,1726911043091,-500.0,0.00014811,2]
[338764883,1726911043101,-500.0,0.00014811,2]
[338764885,1726911043111,-500.0,0.00014811,2]
[338764887,1726911043120,-500.0,0.00014811,2]
[338764889,1726911043130,-500.0,0.00014811,2]
[338764891,1726911043140,-500.0,0.00014811,2]
[338764893,1726911043149,-500.0,0.00014811,2]
[338764895,1726911043160,-500.0,0.00014811,2]
[338764898,1726911043170,-500.0,0.00014811,2]
[338764899,1726911043179,-500.0,0.00014811,2]
[338764901,1726911043189,-500.0,0.00014811,2]
[338764904,1726911043199,-500.0,0.00014811,2]
[338764906,1726911043208,-500.0,0.00014811,2]
[338764907,1726911043220,-500.0,0.00014811,2]
[338764909,1726911043229,-500.0,0.00014811,2]
[338764911,1726911043238,-351.72217646,0.00014811,2]
[338764913,1726911043248,-500.0,0.00014811,2]
[338764915,1726911043258,-503.686363,0.00014813,2]
[338764917,1726911043267,-503.686363,0.00014813,2]
[338764919,1726911043277,-654.530054,0.00014813,2]
[338764922,1726911043287,-11.25718466,0.00014813,2]
[338764937,1726911043432,-50574.61486924,0.00014813,2]
[338764939,1726911043442,-3172.49798455,0.00014813,2]
[338764941,1726911043451,-500.0,0.00014814,2]
[338764943,1726911043461,-526.59715841,0.00014814,2]
[338764945,1726911043475,-179.55963272,0.00014814,2]
[338764947,1726911043485,-640.23618651,0.00014814,2]
[338764949,1726911043494,-500.0,0.00014814,2]
[338764951,1726911043503,-500.0,0.00014814,2]
[338764953,1726911043513,-500.0,0.00014814,2]
[338764955,1726911043522,-294.93094753,0.00014814,2]
[338764957,1726911043531,-500.0,0.00014814,2]
[338764959,1726911043541,-591.62261635,0.00014814,2]
[338764963,1726911043550,-500.0,0.00014814,2]
[338764965,1726911043560,-500.0,0.00014814,2]
[338764967,1726911043569,-500.0,0.00014814,2]
[338764969,1726911043578,-500.0,0.00014814,2]
[338764971,1726911043588,-500.0,0.00014814,2]
[338764973,1726911043597,-500.0,0.00014814,2]
[338764975,1726911043607,-500.0,0.00014814,2]
[338764977,1726911043617,-460.6567809,0.00014814,2]
[338764979,1726911043626,-500.0,0.00014814,2]
[338764981,1726911043636,-500.0,0.00014814,2]
[338764983,1726911043645,-500.0,0.00014814,2]
[338764985,1726911043654,-500.0,0.00014814,2]
[338764986,1726911043663,-500.0,0.00014814,2]
[338764988,1726911043673,-500.0,0.00014814,2]
[338764990,1726911043682,-500.0,0.00014814,2]
[338764992,1726911043692,-500.0,0.00014814,2]
[338764994,1726911043701,-500.0,0.00014814,2]
[338764996,1726911043711,-500.0,0.00014814,2]
[338764998,1726911043724,-157.60850622,0.00014815,2]
[338765000,1726911043733,-50585.8720539,0.00014815,2]
[338765002,1726911043743,-3172.49798455,0.00014815,2]
[338765004,1726911043752,-500.0,0.00014822,2]